bitfinex/quotes_ETHUSD_20220220
["timestamp","ask_amount","ask_price","bid_price","bid_amount"]
[1645342370946,0.0112155,2656.4,2655.8,0.90354357]
[1645342371147,0.0112155,2656.4,2655.8,4.40354357]
[1645342371346,0.0112155,2656.4,2656.2,1.02241621]
[1645342371943,0.0112155,2656.4,2655.7,1.2103]
[1645342372143,0.01897258,2656.4,2655.7,1.2103]
[1645342372946,0.01897258,2656.4,2656.0,1.15863431]
[1645342376995,0.01897258,2656.4,2656.1,3.5]
[1645342377196,0.0112155,2656.4,2656.0,1.15863431]
[1645342378244,0.01122258,2656.5,2656.1,3.5]
[1645342378445,0.00278031,2656.5,2656.1,3.45]
[1645342378850,0.00278031,2656.5,2656.2,1.2004]
[1645342379251,0.00542809,2656.3,2656.2,1.2004]
[1645342380849,0.00542809,2656.3,2656.2,4.7004]
[1645342381089,0.00542809,2656.3,2656.2,1.2004]
[1645342381893,0.00542809,2656.3,2656.2,4.7004]
[1645342382092,0.00542809,2656.3,2656.2,1.2004]
[1645342386743,0.00542809,2656.3,2656.2,2.09972086]
[1645342387358,0.00542809,2656.3,2656.2,1.2004]
[1645342388443,1.92511136,2657.0,2656.2,1.2004]
[1645342388690,1.52511136,2657.0,2656.2,1.2004]
[1645342388895,0.04263176,2656.9,2656.2,1.2004]
[1645342389291,0.00461295,2656.3,2656.2,1.2004]
[1645342392349,0.00461295,2656.3,2655.8,14.7575]
[1645342392350,0.00461295,2656.3,2655.8,1.1945]
[1645342392646,0.00461295,2656.3,2655.5,0.1882]
[1645342393046,0.09072911,2656.3,2655.5,0.1882]
[1645342393250,0.09072911,2656.3,2655.2,8.6587]
[1645342393847,0.94253,2656.2,2655.2,8.6587]
[1645342394352,1.62864616,2656.2,2655.2,8.6587]
[1645342394850,2.62864616,2656.2,2655.2,8.6587]
[1645342395249,2.54253,2656.2,2655.2,8.6587]
[1645342395648,1.54253,2656.2,2655.2,8.6587]
[1645342396704,5.0,2655.8,2655.2,1.1815]
[1645342396904,5.454,2655.8,2655.0,0.01991004]
[1645342397104,0.94274,2655.6,2655.0,0.01991004]
[1645342397304,0.454,2655.5,2655.0,0.01991004]
[1645342397701,2.63999,2655.5,2655.0,0.01991004]
[1645342397899,1.0,2655.4,2655.0,0.01991004]
[1645342398099,1.88589,2655.3,2655.0,0.01991004]
[1645342398300,2.18589,2655.3,2655.0,0.01991004]
[1645342399102,0.3,2655.3,2655.0,0.01991004]
[1645342399302,1.8859,2655.2,2655.0,0.01991004]
[1645342399701,2.1859,2655.2,2655.0,0.01991004]
[1645342399953,5.6859,2655.2,2655.0,0.01991004]
[1645342400249,0.94293,2655.1,2655.0,0.01991004]
[1645342400448,1.94293,2655.1,2655.0,0.01991004]
[1645342400648,1.24293,2655.1,2655.0,0.01991004]
[1645342400846,2.24293,2655.1,2655.0,0.01991004]
[1645342401447,2.24293,2655.1,2654.6,1.2018]
[1645342403605,2.24293,2655.1,2654.0,0.1882]
[1645342403606,0.94308,2654.9,2654.0,0.1882]
[1645342403796,0.94308,2654.6,2654.0,1.3449]
[1645342404199,1.94308,2654.6,2654.0,1.3449]
[1645342404398,2.54308,2654.6,2654.0,1.3449]
[1645342408144,1.6,2654.6,2654.0,1.3449]
[1645342408343,0.6,2654.6,2654.0,1.3449]
[1645342408645,1.50859586,2655.0,2654.0,1.3449]
[1645342409145,2.82915,2654.9,2654.0,1.3449]
[1645342409343,1.0,2654.8,2654.0,1.3449]
[1645342409543,1.0,2654.8,2654.0,1.1567]
[1645342409742,0.94303,2654.7,2654.0,1.1567]
[1645342410145,1.24303,2654.7,2654.0,1.1567]
[1645342410348,0.00472511,2654.5,2654.0,1.1567]
[1645342410543,0.00472511,2654.5,2653.7,7.2296]
[1645342410744,0.94316,2654.4,2653.7,7.2296]
[1645342411203,2.24316,2654.4,2653.7,7.2296]
[1645342415344,1.94316,2654.4,2653.7,7.2296]
[1645342415546,0.00919693,2654.5,2653.7,7.2296]
[1645342417148,0.00919693,2654.5,2653.5,1.1686]
[1645342417350,1.39712,2654.4,2653.5,1.1686]
[1645342417747,1.69712,2654.4,2653.5,1.1686]
[1645342417946,1.88649,2654.3,2653.5,1.1686]
[1645342418349,2.88649,2654.3,2653.5,1.1686]
[1645342419601,2.88649,2654.3,2653.5,1.1186]
[1645342421007,1.0,2654.3,2653.5,1.1186]
[1645342421400,1.24766147,2654.4,2653.5,1.1186]
[1645342422847,2.14766147,2654.4,2653.5,1.1186]
[1645342423654,2.14766147,2654.4,2653.2,0.13819997]
[1645342424056,0.00453876,2654.2,2653.2,0.13819997]
[1645342427603,0.00453876,2654.2,2653.5,1.04049314]
[1645342427902,0.00453876,2654.2,2653.6,3.5]
[1645342428313,0.00447182,2654.5,2653.9,1.08115686]
[1645342428503,0.00447182,2654.5,2654.0,3.5]
[1645342428707,0.00447182,2654.5,2653.8,3.5]
[1645342428909,0.00447182,2654.5,2653.9,11.55]
[1645342429105,0.00428595,2655.3,2654.5,0.00905136]
[1645342429705,0.00428595,2655.3,2654.8,0.86876565]
[1645342429979,0.00428595,2655.3,2654.9,1.2314]
[1645342432481,0.00428595,2655.3,2654.9,4.7314]
[1645342432881,0.00428595,2655.3,2654.9,1.2314]
[1645342433714,0.00387028,2655.2,2654.9,1.2314]
[1645342433914,0.00387028,2655.2,2654.9,4.7314]
[1645342434120,0.00387028,2655.2,2654.9,1.2314]
[1645342434312,0.00387028,2655.2,2655.1,1.05111586]
[1645342435113,0.00387028,2655.2,2654.9,1.2314]
[1645342436517,0.00387028,2655.2,2654.9,2.30450632]
[1645342438247,0.00387028,2655.2,2654.9,1.2314]
[1645342439051,0.90080623,2655.7,2655.1,0.97720367]
[1645342439254,1.20080623,2655.7,2655.1,0.97720367]
[1645342440248,1.20080623,2655.7,2654.9,1.2314]
[1645342440951,2.20080623,2655.7,2654.9,1.2314]
[1645342441200,1.20080623,2655.7,2654.9,1.2314]
[1645342441502,2.28692239,2655.7,2654.9,1.2314]
[1645342441905,1.28692239,2655.7,2654.9,1.2314]
[1645342442101,2.28692239,2655.7,2654.9,1.2314]
[1645342443301,1.23692239,2655.7,2654.9,1.2314]
[1645342443501,1.23692239,2655.7,2654.9,2.09964681]
[1645342443702,2.24398509,2655.7,2654.9,2.09964681]
[1645342443901,1.24398509,2655.7,2654.9,2.09964681]
[1645342444101,2.24398509,2655.7,2654.9,2.09964681]
[1645342444303,2.24398509,2655.7,2654.9,1.2314]
[1645342447061,1.15786893,2655.7,2655.2,1.07180237]
[1645342447257,0.0070627,2655.7,2655.2,1.07180237]
[1645342448256,0.0070627,2655.7,2655.0,3.5]
[1645342448460,0.0070627,2655.7,2654.9,1.2314]
[1645342448911,0.09317886,2655.7,2654.9,1.2314]
[1645342449310,0.0070627,2655.7,2654.9,1.2314]
[1645342449511,0.0070627,2655.7,2655.0,1.08962187]
[1645342450112,0.0070627,2655.7,2654.9,1.055245]
[1645342451117,0.0070627,2655.7,2655.0,1.07422137]
[1645342452350,0.0070627,2655.7,2654.9,1.055245]
[1645342453448,0.0070627,2655.7,2655.3,0.92629248]
[1645342455347,0.0070627,2655.7,2654.9,1.055245]
[1645342455947,0.08611616,2655.6,2654.9,1.055245]
[1645342456204,0.54011616,2655.6,2654.9,1.055245]
[1645342456406,0.84011616,2655.6,2654.9,1.055245]
[1645342457403,0.754,2655.6,2654.9,1.055245]
[1645342458004,0.84011616,2655.6,2654.9,1.055245]
[1645342458405,0.754,2655.6,2654.9,1.055245]
[1645342459406,0.3,2655.6,2654.9,1.055245]
[1645342459608,1.0070627,2655.7,2655.2,1.09540434]
[1645342459851,0.0070627,2655.7,2655.2,1.09540434]
[1645342460051,0.0070627,2655.7,2654.9,1.055245]
[1645342460956,0.09317886,2655.7,2654.9,1.055245]
[1645342461756,0.09317886,2655.7,2654.9,2.1898368]
[1645342462453,0.0070627,2655.7,2654.9,2.1898368]
[1645342462856,0.09317886,2655.7,2654.9,2.1898368]
[1645342464301,0.0070627,2655.7,2654.9,2.1898368]
[1645342472503,0.0070627,2655.7,2654.9,1.055245]
[1645342472708,1.88558,2655.6,2654.9,1.055245]
[1645342472905,0.454,2655.5,2654.9,1.055245]
[1645342473404,1.754,2655.5,2654.9,1.055245]
[1645342473805,0.94278,2655.4,2654.9,1.055245]
[1645342474004,1.24278,2655.4,2654.9,1.055245]
[1645342474206,1.24278,2655.4,2654.9,1.05419064]
[1645342475048,0.3,2655.4,2654.9,1.05419064]
[1645342475248,2.054,2655.5,2654.9,1.05419064]
[1645342475551,2.054,2655.5,2654.5,0.00905136]
[1645342475854,0.08611616,2655.4,2654.5,0.00905136]
[1645342476048,0.454,2655.3,2654.5,0.00905136]
[1645342476253,0.454,2655.3,2654.6,1.6016502]
[1645342476254,0.754,2655.3,2654.6,1.6016502]
[1645342476448,0.754,2655.3,2654.5,0.00905136]
[1645342476848,0.754,2655.3,2654.7,0.86022836]
[1645342477051,0.3,2655.3,2654.7,0.86022836]
[1645342477248,0.3,2655.3,2654.5,0.00905136]
[1645342477650,0.3,2655.3,2654.6,1.60170115]
[1645342478455,0.3,2655.3,2655.2,0.5]
[1645342478701,0.3,2655.3,2655.2,0.41388384]
[1645342479101,0.38973979,2655.3,2655.2,0.41388384]
[1645342480405,1.88607,2655.1,2654.5,0.00905136]
[1645342480602,2.34007,2655.1,2654.5,0.00905136]
[1645342480803,0.38611616,2655.0,2654.5,0.00905136]
[1645342481305,4.41618249,2655.0,2654.5,0.00905136]
[1645342482550,0.94301,2654.9,2654.5,0.00905136]
[1645342482753,1.24301,2654.9,2654.5,0.00905136]
[1645342484156,1.32912616,2654.9,2654.5,0.00905136]
[1645342484558,1.24301,2654.9,2654.5,0.00905136]
[1645342485356,1.24144547,2654.9,2654.5,0.00905136]
[1645342488007,1.32756163,2654.9,2654.5,0.00905136]
[1645342488616,0.94301,2654.9,2654.5,0.00905136]
[1645342488815,0.0036573,2654.8,2654.5,0.00905136]
[1645342489011,0.0036573,2654.8,2654.6,1.60155705]
[1645342489209,0.0036573,2654.8,2654.7,1.1296]
[1645342489612,0.0036573,2654.8,2654.7,10.66675705]
[1645342490855,0.0036573,2654.8,2654.7,14.16675705]
[1645342492058,0.0036573,2654.8,2654.7,12.5652]
[1645342493701,6.883e-05,2654.9,2654.7,12.5652]
[1645342494012,1.4624,2656.0,2655.7,1.17548637]
[1645342494013,0.4624,2656.0,2655.7,1.17548637]
[1645342494602,0.4624,2656.0,2655.0,1.2193]
[1645342495200,0.4624,2656.0,2655.1,3.5]
[1645342495597,0.4624,2656.0,2655.0,1.2193]
[1645342495598,0.4624,2656.0,2655.4,1.17854701]
[1645342495799,0.3,2655.9,2655.4,1.17854701]
[1645342496199,0.6,2655.9,2655.4,1.17854701]
[1645342496399,0.3,2655.9,2655.4,1.17854701]
[1645342496603,0.4624,2656.0,2655.4,1.17854701]
[1645342496899,0.3,2655.9,2655.4,1.17854701]
[1645342497554,0.4624,2656.0,2655.4,1.17854701]
[1645342497753,0.4624,2656.0,2655.5,3.5]
[1645342497954,0.4624,2656.0,2655.4,1.17854701]
[1645342498657,0.00771841,2656.2,2655.5,3.5]
[1645342498861,0.00771841,2656.5,2655.6,2.74545104]
[1645342499061,0.00273915,2656.6,2656.3,0.89246314]
[1645342499360,0.04035807,2656.5,2655.8,3.1059]
[1645342499857,0.04035807,2656.5,2655.9,1.1705]
[1645342500655,0.04035807,2656.5,2656.3,1.17208243]
[1645342502111,0.04035807,2656.5,2656.0,3.5]
[1645342503110,5.807e-05,2656.5,2656.1,1.03744686]
[1645342503314,0.00771841,2657.1,2656.3,46.0]
[1645342503315,8.537e-05,2656.6,2656.3,46.0]
[1645342503506,8.537e-05,2656.6,2656.5,5.0]
[1645342503715,1.8175388,2658.1,2656.7,11.9291]
[1645342503911,0.007,2658.3,2657.1,0.01270438]
[1645342504119,0.007,2658.3,2656.9,0.188]
[1645342504311,0.94186,2657.9,2656.8,2.3596]
[1645342504512,0.94186,2657.9,2656.8,2.33190772]
[1645342504954,0.94186,2657.9,2656.9,0.88849695]
[1645342505355,1.24186,2657.9,2656.9,0.88849695]
[1645342505555,1.54186,2657.9,2656.9,0.88849695]
[1645342505955,1.62797616,2657.9,2656.9,0.88849695]
[1645342506157,1.62797616,2657.9,2656.8,2.33190772]
[1645342506158,5.0,2657.7,2656.8,2.33190772]
[1645342506356,5.0,2657.7,2656.8,1.17270772]
[1645342506357,0.94215,2657.5,2656.8,1.17270772]
[1645342506557,0.754,2657.4,2656.8,1.17270772]
[1645342506757,0.94235,2657.0,2656.3,3.5]
[1645342506957,1.99635,2657.0,2655.7,4.7122]
[1645342507261,1.99635,2657.0,2656.1,0.84310266]
[1645342507559,0.08611616,2656.9,2656.1,0.84310266]
[1645342507756,0.94236,2656.6,2655.7,4.7122]
[1645342507955,1.24236,2656.6,2655.7,4.7122]
[1645342508156,1.24236,2656.6,2655.7,4.9004]
[1645342508157,1.54236,2656.6,2655.7,4.9004]
[1645342508628,0.94236,2656.6,2655.7,4.9004]
[1645342508914,1.54236,2656.6,2655.7,4.9004]
[1645342509116,1.0,2657.0,2655.7,4.9004]
[1645342509513,0.00276074,2657.3,2655.8,11.55]
[1645342509713,0.00276074,2657.3,2656.2,1.10656746]
[1645342509921,1.88449,2657.1,2656.3,1.1541]
[1645342510315,0.94225,2656.9,2656.3,1.1541]
[1645342510714,1.54225,2656.9,2656.3,1.1541]
[1645342510917,2.48465,2656.9,2656.3,1.1541]
[1645342512566,0.94253,2656.5,2655.6,3.0102]
[1645342512763,0.94253,2656.5,2655.6,1.2331]
[1645342512764,4.42765,2656.5,2655.6,1.2331]
[1645342512964,4.42765,2656.5,2654.7,1.1411]
[1645342512965,3.42765,2656.5,2655.0,0.1882]
[1645342513163,1.454,2656.4,2654.9,11.71173117]
[1645342513363,0.454,2656.4,2655.0,3.5]
[1645342513565,1.454,2656.4,2655.0,3.5]
[1645342513764,1.454,2656.4,2655.2,1.00146112]
[1645342513965,0.454,2656.4,2655.2,1.00146112]
[1645342514168,1.454,2656.4,2655.3,1.1785]
[1645342515071,0.9427,2656.1,2655.3,1.1785]
[1645342515264,1.5427,2656.1,2655.3,1.1785]
[1645342515464,2.5427,2656.1,2655.3,1.1785]
[1645342515866,3.48537,2656.1,2655.3,1.1785]
[1645342516101,7.92807,2656.1,2655.3,1.1785]
[1645342516306,0.454,2656.0,2655.3,1.1785]
[1645342516505,0.454,2656.0,2654.9,10.47863117]
[1645342516506,1.88584,2655.7,2654.9,0.00073117]
[1645342516705,0.454,2655.6,2654.9,0.00073117]
[1645342516903,1.69688,2655.6,2654.9,0.00073117]
[1645342517104,1.754,2655.6,2654.9,0.00073117]
[1645342517503,1.454,2655.6,2654.9,0.00073117]
[1645342517710,1.94263,2655.8,2654.9,0.00073117]
[1645342517905,1.0,2656.1,2654.9,0.00073117]
[1645342518107,3.954,2656.9,2655.0,0.1882]
[1645342518405,0.00275888,2657.0,2655.1,1.2352]
[1645342518605,0.00275888,2657.0,2655.2,3.6882]
[1645342519004,0.00275888,2657.0,2656.0,0.84097387]
[1645342519209,0.00547318,2656.1,2656.0,0.84097387]
[1645342521363,0.00547318,2656.1,2656.0,4.34097387]
[1645342521962,1.63990318,2657.2,2656.0,4.34097387]
[1645342522165,1.63990318,2657.2,2656.1,1.1718]
[1645342522767,2.23990318,2657.2,2656.1,1.1718]
[1645342523263,1.24219,2657.0,2656.1,4.6718]
[1645342523462,1.24219,2657.0,2656.1,1.1718]
[1645342523463,1.54219,2657.0,2656.1,1.1718]
[1645342525315,2.48476,2657.0,2655.5,3.3326]
[1645342525513,1.88477,2656.7,2655.6,1.1606]
[1645342525812,2.93877,2656.7,2655.6,1.1606]
[1645342526012,6.8853241,2656.6,2655.6,1.1606]
[1645342526209,1.054,2656.5,2655.6,1.1606]
[1645342526813,1.88538,2656.3,2655.7,3.5]
[1645342527012,2.18538,2656.3,2655.6,1.1606]
[1645342527357,0.3,2656.3,2655.6,1.1606]
[1645342527554,1.3,2656.4,2655.6,1.1606]
[1645342527754,0.3,2656.4,2655.6,1.1606]
[1645342528059,1.3,2656.4,2655.6,1.1606]
[1645342528253,0.3,2656.4,2655.6,1.1606]
[1645342528454,1.3,2656.4,2655.6,1.1606]
[1645342528656,0.3,2656.4,2655.6,1.1606]
[1645342528857,1.3,2656.4,2655.6,1.1606]
[1645342529057,0.3,2656.4,2655.6,1.1606]
[1645342529455,1.3,2656.4,2655.6,1.1606]
[1645342529655,0.3,2656.4,2655.6,1.1606]
[1645342529856,1.3,2656.4,2655.6,1.1606]
[1645342530057,0.3,2656.4,2655.6,1.1606]
[1645342530260,1.3,2656.4,2655.6,1.1606]
[1645342530560,0.3,2656.4,2655.6,1.1606]
[1645342530857,1.3,2656.4,2655.6,1.1606]
[1645342531103,0.3,2656.4,2655.6,1.1606]
[1645342531309,1.3,2656.4,2655.6,1.1606]
[1645342531708,0.3,2656.4,2655.6,1.1606]
[1645342531904,1.3,2656.4,2655.6,1.1606]
[1645342532107,0.3,2656.4,2655.6,1.1606]
[1645342532305,1.3,2656.4,2655.6,1.1606]
[1645342532506,0.3,2656.4,2655.6,1.1606]
[1645342532806,1.3,2656.4,2655.6,1.1606]
[1645342533210,0.3,2656.4,2655.6,1.1606]
[1645342533408,1.3,2656.4,2655.6,1.1606]
[1645342533612,1.3,2656.4,2655.6,1.16059988]
[1645342533808,0.30278378,2656.4,2655.6,1.16059988]
[1645342534009,1.30278378,2656.4,2655.6,1.16059988]
[1645342534412,0.30278378,2656.4,2655.6,1.16059988]
[1645342534610,1.29495559,2656.4,2655.6,1.16059988]
[1645342535256,0.29495559,2656.4,2655.6,1.16059988]
[1645342535454,1.29495559,2656.4,2655.6,1.16059988]
[1645342535654,0.29495559,2656.4,2655.6,1.16059988]
[1645342535860,1.29495559,2656.4,2655.6,1.16059988]
[1645342536055,0.29495559,2656.4,2655.6,1.16059988]
[1645342536256,1.29495559,2656.4,2655.6,1.16059988]
[1645342536455,0.29495559,2656.4,2655.6,1.16059988]
[1645342536657,1.29495559,2656.4,2655.6,1.16059988]
[1645342537257,0.29495559,2656.4,2655.7,3.5]
[1645342537459,1.29495559,2656.4,2655.7,3.5]
[1645342537864,0.29495559,2656.4,2655.7,3.5]
[1645342538061,1.29495559,2656.4,2655.6,1.16059988]
[1645342538259,0.29495559,2656.4,2655.7,3.5]
[1645342538462,1.29495559,2656.4,2655.6,1.16059988]
[1645342538768,1.29495559,2656.4,2655.9,0.95029896]
[1645342538940,1.29761283,2656.4,2655.9,0.95029896]
[1645342539141,0.29761283,2656.4,2655.9,0.95029896]
[1645342539341,1.29761283,2656.4,2655.9,0.95029896]
[1645342539548,0.00265724,2656.4,2656.0,3.5]
[1645342539940,0.00265724,2656.4,2656.1,1.1458]
[1645342540141,0.00265724,2656.4,2656.1,1.13797573]
[1645342543666,0.9422,2657.0,2656.1,1.13797573]
[1645342544068,1.5422,2657.0,2656.1,1.13797573]
[1645342545464,1.5422,2657.0,2656.1,0.63797573]
[1645342547811,1.5422,2657.0,2655.9,0.95029896]
[1645342548211,1.5422,2657.0,2656.0,3.5]
[1645342548411,1.5422,2657.0,2655.9,0.95029896]
[1645342548613,1.5422,2657.0,2656.0,3.5]
[1645342549412,1.5422,2657.0,2655.9,0.95029896]
[1645342549856,1.5422,2657.0,2656.0,3.5]
[1645342552157,1.62831616,2657.0,2656.0,3.5]
[1645342552358,1.62831616,2657.0,2655.9,0.95029896]
[1645342552957,1.62831616,2657.0,2655.5,3.5]
[1645342553156,1.62831616,2657.0,2655.6,1.60097932]
[1645342553356,1.62831616,2657.0,2655.7,3.5]
[1645342553606,1.62831616,2657.0,2655.8,1.60097932]
[1645342554013,1.88477,2656.7,2655.4,7.2791]
[1645342554215,0.94259,2656.3,2655.4,7.2791]
[1645342554706,0.6,2656.3,2655.4,7.2791]
[1645342555108,1.054,2656.6,2655.4,7.2791]
[1645342555309,0.3,2656.3,2655.4,7.2791]
[1645342555507,1.054,2656.6,2655.4,7.2791]
[1645342555708,1.88522,2656.4,2655.4,10.7791]
[1645342555910,1.88522,2656.4,2655.4,7.2791]
[1645342555911,1.88525,2656.0,2655.4,7.2791]
[1645342556313,0.3,2655.9,2655.4,1.2339]
[1645342556715,1.3,2655.9,2655.4,1.2339]
[1645342556912,0.3,2655.9,2655.4,1.2339]
[1645342557111,1.3,2655.9,2655.3,7.6635]
[1645342557357,1.3,2655.9,2654.9,3.13403117]
[1645342557558,1.3,2655.9,2655.0,1.60131634]
[1645342557758,0.3,2655.9,2655.0,1.60131634]
[1645342557961,1.3,2655.9,2655.0,2.75931634]
[1645342558259,1.3,2655.9,2655.1,1.60131634]
[1645342558260,0.3,2655.9,2655.1,1.60131634]
[1645342558459,1.3,2655.9,2655.1,1.60131634]
[1645342558965,0.94262,2655.8,2655.1,1.60131634]
[1645342559367,1.24262,2655.8,2655.1,1.60131634]
[1645342559761,2.24262,2655.8,2655.1,1.60131634]
[1645342561811,1.24262,2655.8,2655.1,1.60131634]
[1645342562012,2.24262,2655.8,2655.1,1.60131634]
[1645342562413,1.24262,2655.8,2655.1,1.60131634]
[1645342562607,2.24262,2655.8,2655.1,1.60131634]
[1645342563208,1.24262,2655.8,2655.1,1.60131634]
[1645342563609,0.00264055,2655.7,2655.1,1.60131634]
[1645342564211,0.00264055,2655.7,2655.0,1.158]
[1645342564212,1.88562,2655.5,2655.0,1.158]
[1645342564410,1.88562,2655.5,2654.9,3.13403117]
[1645342564411,3.5,2655.4,2654.9,0.00073117]
[1645342564618,4.554,2655.4,2654.9,0.00073117]
[1645342564866,1.0,2655.3,2654.9,0.00073117]
[1645342565064,3.5,2655.2,2654.9,0.00073117]
[1645342565261,1.88618,2655.1,2654.7,1.2046]
[1645342565462,3.34018,2655.1,2654.5,1.2464]
[1645342565662,0.3,2655.0,2654.3,6.4045]
[1645342565861,3.5,2655.0,2654.3,6.4045]
[1645342566265,1.3,2654.9,2654.3,6.4045]
[1645342566463,1.6,2654.9,2654.3,6.4045]
[1645342566662,1.6,2654.9,2654.0,1.1313]
[1645342566663,1.88625,2654.7,2654.0,1.1313]
[1645342566865,2.18625,2654.7,2654.1,1.60177411]
[1645342567068,3.42941,2654.7,2654.1,1.60177411]
[1645342567463,1.0,2654.6,2654.1,1.60177411]
[1645342567863,1.0,2654.6,2654.0,1.1313]
[1645342568063,1.0,2654.6,2654.1,1.60178945]
[1645342568265,2.88629,2654.6,2654.0,1.1313]
[1645342569315,1.0,2654.6,2654.0,1.1313]
[1645342569516,4.34265534,2655.1,2654.5,1.17241882]
[1645342569517,1.0,2654.9,2654.5,1.17241882]
[1645342569718,1.0,2654.9,2654.1,3.5]
[1645342569719,1.6,2654.9,2654.1,3.5]
[1645342569919,0.6,2654.9,2654.2,1.60168421]
[1645342570113,1.0,2655.0,2654.2,1.60168421]
[1645342570114,0.6,2655.0,2654.3,3.5]
[1645342570515,0.6,2655.0,2654.1,3.5]
[1645342570718,0.3,2655.0,2654.2,1.60167065]
[1645342570918,0.94295,2654.9,2654.2,1.60167065]
[1645342571516,0.94295,2654.9,2654.0,1.1313]
[1645342571716,1.88605,2654.9,2654.0,1.1313]
[1645342572373,2.48605,2654.9,2654.0,1.1313]
[1645342572972,1.54295,2654.9,2654.0,1.1313]
[1645342573473,1.54295,2654.9,2654.1,3.5]
[1645342573672,0.00261264,2654.8,2654.1,3.5]
[1645342573871,0.00261264,2654.8,2654.0,1.1313]
[1645342575771,1.88629,2654.6,2654.0,1.1313]
[1645342575972,2.64029,2654.6,2654.0,1.1313]
[1645342576209,3.02640616,2654.6,2654.0,1.1313]
[1645342576409,1.0,2654.5,2654.0,1.1313]
[1645342576807,0.94314,2654.4,2654.0,1.1313]
[1645342577208,1.54314,2654.4,2654.0,1.1313]
[1645342577808,0.94314,2654.4,2654.1,3.5]
[1645342578014,0.00261264,2654.8,2654.5,1.19102763]
[1645342579210,1.24291,2655.0,2654.5,1.19102763]
[1645342580658,1.54291,2655.0,2654.5,1.19102763]
[1645342581063,1.54291,2655.0,2654.5,1.14102763]
[1645342581661,1.54291,2655.0,2654.3,1.2471]
[1645342582461,2.54291,2655.0,2654.3,1.2471]
[1645342582661,1.54291,2655.0,2654.3,1.2471]
[1645342582866,1.0,2654.9,2654.3,1.2471]
[1645342583061,0.3,2654.9,2654.3,1.2471]
[1645342583264,0.08611616,2654.8,2654.3,1.2471]
[1645342583464,0.08611616,2654.8,2654.0,1.1456]
[1645342583465,0.03611616,2654.8,2654.0,1.1456]
[1645342583714,0.03611616,2654.8,2653.5,1.2293]
[1645342583715,1.24318,2654.6,2653.5,1.2293]
[1645342583914,2.99718,2654.6,2653.6,1.1456]
[1645342584114,5.95024926,2654.6,2653.6,1.1456]
[1645342584709,6.03636542,2654.6,2653.6,1.1456]
[1645342585111,3.08329616,2654.6,2653.6,1.1456]
[1645342585713,6.58329616,2654.6,2653.6,1.1456]
[1645342585912,3.08329616,2654.6,2653.6,1.1456]
[1645342586411,6.58329616,2654.6,2653.6,1.1456]
[1645342586810,3.08329616,2654.6,2653.6,1.1456]
[1645342587010,6.58329616,2654.6,2653.6,1.1456]
[1645342587209,3.08329616,2654.6,2653.6,1.1456]
[1645342587658,6.58329616,2654.6,2653.6,1.1456]
[1645342588062,10.47959542,2654.6,2653.6,1.1456]
[1645342588958,0.00260308,2654.5,2653.6,1.1456]
[1645342589156,0.454,2654.4,2653.6,1.1456]
[1645342589557,0.754,2654.4,2653.6,1.1456]
[1645342589758,1.054,2654.4,2653.6,1.1456]
[1645342590057,1.054,2654.4,2653.6,1.0956]
[1645342590460,0.9432,2654.2,2653.6,1.0956]
[1645342590859,1.2432,2654.2,2653.6,1.0956]
[1645342591515,0.08611616,2654.1,2653.1,1.3515]
[1645342591715,0.08611616,2654.1,2653.1,1.1131]
[1645342591716,5.0,2653.9,2653.1,1.1131]
[1645342591913,3.954,2653.8,2653.1,1.1131]
[1645342592117,0.54011616,2653.8,2653.1,1.1131]
[1645342592313,1.08611616,2653.7,2653.1,1.1131]
[1645342592514,0.454,2653.6,2652.6,1.1496]
[1645342592713,0.94368,2653.3,2652.7,1.1553]
[1645342592912,1.39768,2653.3,2652.7,1.1553]
[1645342593112,1.99768,2653.3,2652.7,1.1553]
[1645342593319,1.054,2653.3,2652.7,1.1553]
[1645342593518,1.054,2653.3,2652.2,0.1884]
[1645342593721,0.94381,2653.0,2651.9,12.1978]
[1645342593917,0.94382,2652.7,2651.9,12.1978]
[1645342594116,1.99782,2652.7,2651.9,1.2366]
[1645342594967,1.8878,2652.5,2651.9,1.2366]
[1645342595165,0.3,2652.4,2651.9,1.2366]
[1645342595364,3.1878,2652.5,2652.4,0.59999999]
[1645342595564,2.1878,2652.5,2652.4,0.59999999]
[1645342595766,3.1878,2652.5,2652.4,0.59999999]
[1645342595969,2.1878,2652.5,2652.4,0.59999999]
[1645342596167,3.1878,2652.5,2652.4,0.59999999]
[1645342596865,1.3,2652.5,2652.4,0.59999999]
[1645342597266,1.54389,2652.6,2652.4,0.59999999]
[1645342598811,0.6,2652.6,2652.4,0.59999999]
[1645342599014,0.6,2652.8,2652.4,0.59999999]
[1645342599211,1.51473349,2653.0,2652.4,0.59999999]
[1645342599410,1.51473349,2653.0,2652.4,1.67742389]
[1645342601010,1.51473349,2653.0,2652.4,0.59999999]
[1645342601214,2.11473349,2653.0,2652.4,0.59999999]
[1645342602214,3.05854349,2653.0,2652.4,0.59999999]
[1645342602467,1.88754,2652.8,2652.4,0.59999999]
[1645342602661,2.18754,2652.8,2652.4,0.59999999]
[1645342602860,2.48754,2652.8,2652.4,0.59999999]
[1645342603973,0.57111349,2653.0,2652.5,0.89289059]
[1645342604171,0.5736901,2653.0,2652.6,1.60266354]
[1645342604760,0.00257661,2653.0,2652.6,1.60266354]
[1645342604964,0.00257661,2653.0,2652.7,1.1693]
[1645342605564,0.00257661,2653.0,2652.8,1.60261407]
[1645342606408,0.00257661,2653.0,2652.7,1.1693]
[1645342606810,0.00257661,2653.0,2652.8,1.60260012]
[1645342607212,0.00257661,2653.0,2652.8,2.62120012]
[1645342607410,0.00257661,2653.0,2652.9,1.60260012]
[1645342609119,1.02934616,2654.1,2653.4,0.92953676]
[1645342609315,1.02934616,2654.1,2653.0,1.2063]
[1645342609316,1.88692,2653.8,2653.0,1.2063]
[1645342609712,0.08611616,2653.7,2653.0,1.2063]